Cogmind - Beta 15 @@@ ROGUE MODE // 2025.06.29 @ 18:28:56 Player: Infomantis Result: Heading to fleet! Performance ------------- Evolutions (9) 4500 Regions Visited (16) 3200 Robots Destroyed (253) 1265 Value Destroyed (14675) 14675 Prototype IDs (386) 7720 Alien Tech Used (9) 1800 Bonus (46555) 46555 TOTAL SCORE: 79715 Bonus ------- Triggered High Security 500 Triggered Max Security 2000 High Alert Combat Kills 6961 Follower Combat Kills 3134 Delivered SUBCON Basin 2000 Registered with UFD 300 Met Optimus in HQ 500 Met Zhirov 300 Used Core Reset Matrix 3000 Integrated Exoskeleton 5000 Destroyed MAIN.C Guards 500 Met MAIN.C 5000 Destroyed MAIN.C Shell 5000 Destroyed MAIN.C 10000 Win 3000 Friendly Fire -640 Cogmind --------- Core Integrity 253/1600 Matter 415/425 Energy 336/340 System Corruption 0% +Membrane Temperature Cool (0) Movement Walking (30) Location To Fleet Rendezvous Parts ------- > --- POWER (1) -------- Zero-point Reactor > --- PROPULSION (3) --- Sigix Exoskeleton > --- UTILITY (4) ------ Medium Storage Unit Experimental Targeting Computer Experimental Core Analyzer AEGIS Remote Shield > --- WEAPON (3) ------- IN-MT5's Pitchfork "Insurrection" > --- INVENTORY (10) --- Zero-point Reactor Experimental Energy Well (600) Quantum Shading Machine Experimental Weapon Cycler AEGIS Remote Shield Mapping Drone Bay (3/3) Transdimensional Reconstructor Sigix Sheargun Sigix Sheargun Sigix Sheargun Peak State ------------ > --- POWER ------------ Zero-point Reactor > --- PROPULSION ------- Sigix Exoskeleton > --- UTILITY ---------- Large Storage Unit Experimental Targeting Computer Experimental Core Analyzer AEGIS Remote Shield > --- WEAPON ----------- Sigix Sheargun Sigix Sheargun Sigix Sheargun > --- INVENTORY -------- Zero-point Reactor Experimental Cooling System Experimental Energy Well Experimental Energy Well Advanced Gravity Neutralizer AEGIS Remote Shield Improved Hacking Suite Mapping Drone Bay Transdimensional Reconstructor Heavy Disruptor Cannon Proton Burst Cannon Improved Matter Neutralizer Advanced Remote Datajack IN-MT5's Pitchfork "Insurrection" [Rating: 244] Favorites ----------- Power Improved Deuterium Engine Engine Improved Deuterium Engine Power Core Light Nuclear Core Reactor Light Quantum Reactor Propulsion Compact Wheel Treads Light Treads Leg Sigix Exoskeleton Wheel Compact Wheel Flight Unit Xenon Bombardment Thruster Utility Humpback Device Deep Structural Scanner Storage Humpback Processor Machine Analyzer Hackware Improved System Shield Protection Tower Shield Weapon Subdweller Machine Gun Energy Gun Makeshift Laser Energy Cannon Subdweller Beam Cannon Ballistic Gun Subdweller Machine Gun Ballistic Cannon Antimatter Cannon Launcher Mini Grenade Launcher Special Weapon Mining Laser Impact Weapon Powered Hammer Slashing Weapon Makeshift Sword Special Melee Weapon Datajack Build | -11 -10 -10 -7 -7 -5 -5 -5 -5 -4 -4 -3 -2 -2 -2 -1 -1 ------- Run | Yrd Mat Sub Rec Scr Fac Upp Upp Zhi Pro Fac Res Res Tes Sec Acc Com Slots Evolved 18 | . . . . . 10 . . . . 2 2 2 . . 2 . Power 2 | . . . . . 1 . . . . . . 1 . . . . Propulsion 2 | . . . . . 2 . . . . . . . . . . . Utility 12 | . . . . . 6 . . . . 2 2 1 . . 1 . Weapon 2 | . . . . . 1 . . . . . . . . . 1 . Parts Attached 202 | 9 . 11 6 19 39 7 6 5 5 5 18 16 12 22 8 14 Power 26 | 1 . 2 1 1 4 1 1 1 . . 4 3 2 3 . 2 Engine 10 | 1 . 2 1 1 4 . . . . . 1 . . . . . Core 3 | . . . . . . 1 1 . . . 1 . . . . . Reactor 13 | . . . . . . . . 1 . . 2 3 2 3 . 2 Propulsion 31 | 4 . . 5 4 8 2 2 1 . . 1 . 1 3 . . Treads 7 | 2 . . 2 1 . . . . . . . . 1 1 . . Leg 8 | . . . 1 . 1 2 . 1 . . 1 . . 2 . . Wheel 13 | 2 . . 2 . 7 . 2 . . . . . . . . . Hover . | . . . . . . . . . . . . . . . . . Flight 3 | . . . . 3 . . . . . . . . . . . . Utility 93 | 2 . 3 . 8 15 3 2 2 3 5 10 8 6 11 5 10 Device 41 | 1 . 1 . . 3 2 2 1 2 2 6 4 6 4 2 5 Storage 11 | 1 . 1 . 3 . . . . . . 1 . . . 1 4 Processor 19 | . . . . 1 3 . . . . 1 3 3 . 5 2 1 Hackware 7 | . . . . 1 5 . . . . 1 . . . . . . Protection 15 | . . 1 . 3 4 1 . 1 1 1 . 1 . 2 . . Artifact . | . . . . . . . . . . . . . . . . . Weapon 52 | 2 . 6 . 6 12 1 1 1 2 . 3 5 3 5 3 2 Energy Gun 5 | . . 1 . . . 1 . . . . . . . 1 1 1 Energy Cannon 13 | . . 1 . 1 3 . 1 . . . 1 1 1 1 2 1 Ballistic Gun 14 | 2 . 3 . . 2 . . . 1 . 2 2 1 1 . . Ballistic Cannon 6 | . . . . . 3 . . . 1 . . 1 1 . . . Launcher 4 | . . . . 1 1 . . . . . . 1 . 1 . . Special Weapon 5 | . . 1 . 1 1 . . 1 . . . . . 1 . . Impact Weapon 2 | . . . . 1 1 . . . . . . . . . . . Slashing Weapon 2 | . . . . 1 1 . . . . . . . . . . . Piercing Weapon . | . . . . . . . . . . . . . . . . . Special Melee Weapon 1 | . . . . 1 . . . . . . . . . . . . Unidentified Prototypes 38 | . . . . . 2 1 . 5 1 1 1 1 6 12 3 5 Corrupted Parts 3 | . . . . 1 2 . . . . . . . . . . . System Corruption 6 | . . . . 1 5 . . . . . . . . . . . Parts Lost 59 | . . 1 3 . 18 1 1 . 1 7 3 8 . 15 1 . Power 10 | . . . 1 . 3 . . . . 1 . 2 . 3 . . Propulsion 11 | . . . 2 . 7 . . . . . . . . 2 . . Utility 24 | . . 1 . . 3 . 1 . . 5 3 4 . 6 1 . Weapon 14 | . . . . . 5 1 . . 1 1 . 2 . 4 . . Highest Loss Streak 9 | . . 1 1 . 4 1 1 . 1 3 2 4 . 9 1 . To Critical Strikes . | . . . . . . . . . . . . . . . . . Average Backups 15 | 4 7 10 18 21 13 13 12 12 12 10 15 16 16 15 14 11 Power 1 | 1 1 1 2 1 . . . . . . . . . . . 1 Propulsion 1 | . 2 1 1 1 . . . . . . . 1 1 1 . . Utility 7 | 1 2 4 9 11 7 7 7 7 8 6 7 9 7 5 7 6 Weapon 4 | 1 2 3 5 5 3 4 4 4 3 3 7 5 6 7 3 2 Tool/Special . | . . . . . . . . . . . . . . . . . Unused Backups 42 | . . 2 2 24 1 3 . 1 . . 2 . . 1 1 5 Power 4 | . . . . 3 . . . . . . . . . . . 1 Propulsion 2 | . . 1 . 1 . . . . . . . . . . . . Utility 31 | . . . 2 17 1 3 . 1 . . 2 . . 1 1 3 Weapon 4 | . . 1 . 3 . . . . . . . . . . . . Tool/Special 1 | . . . . . . . . . . . . . . . . 1 Average Slot Usage (%) 83 | . 100 83 82 88 84 92 90 70 81 72 81 77 80 75 78 78 Engine 8 | . 14 13 12 13 8 5 2 . . . . . . . . . Reactor 2 | . . . . . . . . 2 5 5 6 7 11 11 8 9 Treads 5 | . 28 16 12 1 . . . . . . . . . 5 . . Leg 1 | . . . . . 1 6 4 . . . . . . 1 9 9 Wheel 12 | . . 6 14 25 14 13 11 10 11 10 8 8 8 1 . . Device 6 | . 14 3 . . 6 16 16 16 14 13 19 16 17 16 2 6 Storage 9 | . 14 10 14 12 5 5 5 5 5 5 4 4 4 4 9 9 Processor 9 | . . . . 4 17 23 19 17 17 15 22 21 21 17 22 19 Protection 1 | . . 3 . 1 5 . . . 1 4 2 2 3 3 . . Energy Gun 5 | . . 3 14 3 . 2 . . . . . . . 1 24 25 Energy Cannon 1 | . . 3 . . 5 . 2 . 1 . 1 1 2 5 . . Ballistic Gun 8 | . 28 19 14 3 1 4 8 1 5 4 10 9 9 2 . . Launcher 1 | . . . . 7 . . . . . 2 . . . . . . Special Weapon 1 | . . . . 3 . . . . . . . . . . . . Impact Weapon 1 | . . . . 1 . 5 5 5 4 2 . . . . 1 . Slashing Weapon 1 | . . . . 4 1 . . . . . . . . . . . Peak Build Rating 244 | 7 7 56 42 24 67 58 85 89 90 103 122 141 166 228 239 244 Average Rating 70 | 5 7 34 29 21 54 51 73 75 88 91 111 128 148 166 233 237 On Entrance 81 | . 7 7 33 23 23 48 56 85 87 89 99 115 117 161 225 215 Naked Turns 1 | . . . . 1 . . . . . . . . . . . . Heaviest Build 263 | 11 11 263 216 216 76 43 63 62 75 80 109 115 121 154 61 73 Greatest Support 190 | 40 40 40 28 28 40 35 40 40 40 40 90 40 40 190 70 70 Greatest Overweight (x) 71 | . . 13 71 10 21 2 2 2 1 1 4 2 5 7 . 1 Average Overweight (x) 2 | . . 4 12 3 1 1 1 1 1 1 1 2 2 . . . Largest Inventory Capacity 35 | 8 8 35 35 35 15 15 15 15 15 15 20 20 20 20 20 15 Average Capacity 22 | 7 8 25 35 24 15 15 15 15 15 15 18 20 20 20 15 11 Most Carried 35 | 8 7 35 35 35 15 15 15 15 15 15 20 20 20 20 20 15 Average Carried 20 | 4 7 20 31 23 14 14 14 14 14 12 17 19 18 18 14 11 Final Capacity 35 | 8 8 35 35 15 15 15 15 15 15 15 20 20 20 20 15 10 Final Carried 35 | 7 7 35 35 15 14 15 15 15 15 15 20 20 20 20 15 10 Class Distribution -------------------- 31% | Hauler-Mutant 13% | Scavenger-Scrapper 11% | Commander-Mutant 8% | Scavenger-Mutant 7% | Alien-Sigix 6% | Hauler-Gunner 5% | Mutant 4% | Scavenger-Skirmisher 4% | Scavenger-Tank Dominant Class ---------------- Mutant | -10/Materials Hauler-Gunner | -10/Subcaves Hauler-Mutant | -7/Recycling Hauler-Mutant | -7/Scraptown Scavenger-Mutant | -5/Factory Scavenger-Mutant | -5/Upper Caves Scavenger-Scrapper | -5/Upper Caves Scavenger-Scrapper | -5/Zhirov Scavenger-Scrapper | -4/Proximity Caves Scavenger-Scrapper | -4/Factory Scavenger-Scrapper | -3/Research Scavenger-Scrapper | -2/Research Scavenger-Skirmisher | -2/Testing Scavenger-Skirmisher | -2/Section 7 Alien-Sigix | -1/Access Alien-Sigix | -1/Command Resources | -11 -10 -10 -7 -7 -5 -5 -5 -5 -4 -4 -3 -2 -2 -2 -1 -1 ----------- Run | Yrd Mat Sub Rec Scr Fac Upp Upp Zhi Pro Fac Res Res Tes Sec Acc Com Matter Collected 7538 | 299 15 343 124 260 1154 324 156 128 355 314 384 1258 450 1560 114 300 Remotely . | . . . . . . . . . . . . . . . . . Salvage Created 14700 | 107 70 379 701 . 1714 88 89 332 524 834 231 2570 665 3017 200 3179 Parts 732 | 10 4 28 23 . 87 3 1 5 25 38 11 149 32 147 16 153 Haulers Intercepted 5 | . . . . . 1 . . . 1 . . 1 . 2 . . Recyclers Shooed 9 | 1 . . 1 . 2 . . . . 1 . 4 . . . . Parts Field Recycled . | . . . . . . . . . . . . . . . . . Retrieved Matter . | . . . . . . . . . . . . . . . . . Parts Self-Destructed 61 | . . 11 . . . 12 18 4 16 . . . . . . . Prevented 2 | . . . . . . . . 1 1 . . . . . . . Kills | -11 -10 -10 -7 -7 -5 -5 -5 -5 -4 -4 -3 -2 -2 -2 -1 -1 ------- Run | Yrd Mat Sub Rec Scr Fac Upp Upp Zhi Pro Fac Res Res Tes Sec Acc Com Combat Hostiles Destroyed 194 | . 2 11 4 . 31 5 1 . 13 20 3 33 5 36 3 27 Melee 2 | . . . . . 1 1 . . . . . . . . . . Guns 84 | . 2 10 4 . 3 1 1 . 2 2 2 21 . 8 3 25 Cannons 56 | . . 1 . . 17 . . . 1 2 . 11 3 21 . . AOE 35 | . . . . . 5 3 . . 10 15 . 1 . 1 . . Classes Destroyed 25 | 2 1 5 3 . 5 . . . . 2 . 1 1 4 . 1 Worker 17 | . . . . . 5 . . . 2 . . 4 . 4 . 2 Builder 11 | . . . 1 . 1 . . . . 2 . 3 . 4 . . Tunneler 3 | 2 . . . . . . . . . . . 1 . . . . Hauler 5 | . . . . . 1 . . . 1 . . 1 . 2 . . Recycler 11 | 1 . . 6 . . . . . . 1 . 1 . . . 2 Carrier 1 | . . . . . . . . . . . . . . . . 1 Mechanic 2 | . . . . . . . . . . 1 . . . . . 1 Turret 2 | . . 2 . . . . . . . . . . . . . . Watcher 5 | . . . . . 2 . . . . . . 1 1 1 . . Swarmer 41 | . . 4 . . . 5 . . 8 9 . 5 . . . 10 Saboteur 1 | . . . . . . . . . . . . . . 1 . . Grunt 46 | . 2 . . . 11 . . . 5 7 . 8 . 9 . 4 Brawler 3 | . . . . . . . . . . 2 . . . 1 . . Duelist 3 | . . . 1 . . . . . . . . 1 . 1 . . Protector 2 | . . . . . . . . . . . . 1 . 1 . . Researcher 2 | . . . . . . . . . . . . . . 2 . . Sentry 16 | . . . 3 . 4 . 1 . . 1 1 2 . 4 . . Hunter 16 | . . . . . 7 . . . . 1 1 2 2 3 . . Programmer 46 | . . . . . 9 . . . . . 1 14 2 11 3 6 S7 Guard 1 | . . . . . . . . . . . . . . 1 . . M Guard 2 | . . . . . . . . . . . . . . . . 2 M Shell/Atk 1 | . . . . . . . . . . . . . . . . 1 Combat Programmer 2 | . . . . . . . . . . . . . . . . 2 Executioner 2 | . . . . . . . . . . . . . . 2 . . Alpha 7 2 | . . . . . . . . . . . . . . 2 . . Fortress 1 | . . . . . . . . . . . . . 1 . . . Artisan 1 | . . 1 . . . . . . . . . . . . . . Cobbler 1 | . . 1 . . . . . . . . . . . . . . Subdweller 7 | . . 7 . . . . . . . . . . . . . . Best Kill Streak 11 | 2 2 4 4 . 7 3 1 . 5 7 1 9 3 7 3 11 Combat Bots Only 10 | . 2 4 1 . 4 3 1 . 5 5 1 9 3 5 3 10 Max Kills in Single Turn 4 | 1 1 1 2 . 2 3 1 . 3 4 1 2 1 3 1 4 Gunslinging 1 | . . . . . . . . . . . . . . . . 1 Exploded 4 | . . . . . 2 3 . . 3 4 . 1 . 1 . . Melee 1 | . . . . . 1 1 . . . . . . . . . . Uniques/NPCs Destroyed 2 | . . . . . . . . . . . . . . . . 2 MAIN.C Shell (-1/Command) MAIN.C (-1/Command) Combat | -11 -10 -10 -7 -7 -5 -5 -5 -5 -4 -4 -3 -2 -2 -2 -1 -1 -------- Run | Yrd Mat Sub Rec Scr Fac Upp Upp Zhi Pro Fac Res Res Tes Sec Acc Com Hostile Shots Fired 1808 | . 5 136 86 . 193 8 14 . 43 112 69 122 35 508 316 161 Missed 627 | . 2 52 36 . 60 5 9 . 15 41 28 41 15 150 124 49 Hits 1181 | . 3 84 50 . 133 3 5 . 28 71 41 81 20 358 192 112 Melee 14 | . . . 3 . . . . . . 2 . . . 8 1 . Projectile 1167 | . 3 84 47 . 133 3 5 . 28 69 41 81 20 350 191 112 AOE 11 | . . . 1 . . . . . . 2 . . . . . 8 Critical Strikes 63 | . . 1 . . 6 1 . . . 7 1 6 1 19 15 6 Part Disruptions 6 | . . . . . 2 . . . . . . . 2 1 . 1 Actively Blocked 1 | . . . . . . . . . . . . . 1 . . . Damage Taken 20321 | . 34 890 543 66 2705 75 143 . 515 1342 877 2132 386 6722 2209 1682 Core 2934 | . . 74 127 . 352 30 . . 49 184 59 73 42 654 758 532 Absorbed by Shields 2216 | . . . . . . . . . . . . . 89 1257 . 870 Reduced by Siege Mode 5 | . . . . . . . . . . . . . . 5 . . Redirected to Shielding 138 | . . . . . 41 . . . . . . . 97 . . . Ignored by Resistances 5647 | . . . . . . . . . . 154 52 22 . 718 2099 2602 Regen/Repaired (Parts) 1250 | . . . . . . . 17 . 30 . 21 129 7 1046 . . Core Remaining (%) 59 | 100 . . . 19 . . . . 56 77 95 . . 54 . 15 Volleys Fired 649 | 7 5 58 26 . 91 6 8 3 21 26 44 78 32 150 30 64 Largest 4 | 2 2 4 2 . 3 2 2 1 2 3 3 3 3 3 3 3 Hottest 313 | 40 40 160 80 . 195 61 118 90 122 121 99 201 120 213 313 300 Shots Fired 1358 | 14 10 136 51 . 178 9 16 3 37 47 76 209 56 307 43 166 Gun 758 | 14 10 113 51 . 9 4 11 . 22 21 56 152 36 69 40 150 Cannon 564 | . . 22 . . 164 2 5 1 6 14 20 57 20 234 3 16 Launcher 33 | . . . . . 5 3 . . 9 12 . . . 4 . . Special 3 | . . 1 . . . . . 2 . . . . . . . . Kinetic 698 | 14 10 110 25 . 87 6 11 . 22 35 56 177 36 109 . . Thermal 314 | . . 26 26 . 38 . 5 1 6 . . 27 13 169 3 . Explosive 28 | . . . . . 4 3 . . 9 12 . . . . . . Electromagnetic 101 | . . . . . 49 . . . . . 20 5 7 4 . 16 Slashing 215 | . . . . . . . . . . . . . . 25 40 150 Robot Hit Streak 37 | 8 9 18 18 . 24 5 4 1 7 7 14 17 17 16 6 37 Robot Miss Streak 6 | 3 2 3 2 . 4 3 2 2 3 6 4 6 1 3 2 4 Penetration Max 1 | . . . . . . . . . 1 1 . 1 1 1 . 1 Secondary Targets 13 | . . 2 . . . . . . 1 . . 3 . 3 . 4 Max Gunslinging Chain 1 | . . 1 . . . . . . 1 . . 1 . 1 . 1 Shots Hit Robots 867 | 10 7 95 38 1 119 4 10 5 20 28 50 127 43 178 6 126 Core Hits 486 | 6 5 32 18 . 61 10 3 1 24 43 11 82 19 99 3 69 Critical Kills 27 | . . 1 . . . . . 1 . 1 . 13 1 10 . . Critical Parts Destroyed 39 | . . . 1 . . . 1 . 2 1 2 20 10 2 . . Critical Strikes 89 | . . 1 4 . 4 . 1 1 2 3 5 33 12 20 . 3 Burn 3 | . . . 3 . . . . . . . . . . . . . Meltdown 8 | . . 1 . . . . . 1 . . . . 1 5 . . Destroy 61 | . . . 1 . . . 1 . 1 1 4 33 11 9 . . Blast 8 | . . . . . 2 . . . . 1 . . . 5 . . Corrupt 5 | . . . . . 2 . . . . . 1 . . . . 2 Smash 2 | . . . . . . . . . 1 1 . . . . . . Sever 2 | . . . . . . . . . . . . . . 1 . 1 Melee Attacks 42 | . . . . 1 14 1 . 10 2 11 . 1 . . 2 . Impact 29 | . . . . . 2 1 . 10 2 11 . 1 . . 2 . Slashing 7 | . . . . . 7 . . . . . . . . . . . Piercing . | . . . . . . . . . . . . . . . . . Sneak Attacks 8 | . . . . 1 6 . . . 1 . . . . . . . Combat Hostiles . | . . . . . . . . . . . . . . . . . Follow-up Attacks . | . . . . . . . . . . . . . . . . . Damage Inflicted 37217 | 76 65 1378 739 . 4923 330 246 401 1568 3409 1581 5127 896 7552 540 8386 Guns 18272 | 76 65 995 739 . 167 40 178 . 432 288 1144 3826 341 1498 363 8120 Cannons 12443 | . . 383 . . 3702 33 68 39 76 165 437 1131 555 5616 . 238 Explosions 5117 | . . . . . 682 205 . . 957 2657 . 150 . 438 . 28 Melee 1162 | . . . . . 362 52 . 362 103 283 . . . . . . Ramming 223 | . . . . . 10 . . . . 16 . 20 . . 177 . Kinetic 12960 | 76 65 995 363 . 2131 73 178 . 432 453 1144 4349 341 2360 . . Thermal 6931 | . . 383 376 . 623 . 68 39 76 786 . 562 319 3671 . 28 Explosive 3713 | . . . . . 619 205 . . 957 1871 . . . 61 . . Electromagnetic 2662 | . . . . . 1178 . . . . . 437 196 236 377 . 238 Impact 949 | . . . . . 149 52 . 362 103 283 . . . . . . Slashing 9779 | . . . . . 213 . . . . . . . . 1083 363 8120 Piercing . | . . . . . . . . . . . . . . . . . Highest Corruption 16 | . . . . 1 16 16 16 16 16 . . . . . . . Average Corruption 12 | . . . . 1 8 16 16 16 16 . . . . . . . Corruption Purged . | . . . . . . . . . . . . . . . . . Corruption Blocked 14 | . . . . . . . . . . . . 7 7 . . . Effects 155 | . . . . 2 42 45 32 7 27 . . . . . . . Message Errors 38 | . . . . . 12 13 5 1 7 . . . . . . . Matter Fused 35 | . . . . . 12 10 8 2 3 . . . . . . . Heat Flow Errors 15 | . . . . . 6 4 3 . 2 . . . . . . . Energy Discharges 22 | . . . . 1 5 5 6 1 4 . . . . . . . Parts Fused 2 | . . . . . 1 1 . . . . . . . . . . Data Loss (minor) 17 | . . . . . 3 5 4 1 4 . . . . . . . Data Loss (major) 6 | . . . . 1 1 2 1 1 . . . . . . . . Misfires 7 | . . . . . 1 2 1 . 3 . . . . . . . Alerts 7 | . . . . . 1 2 3 1 . . . . . . . . Misdirections 3 | . . . . . . 1 . . 2 . . . . . . . Weapon Failures 3 | . . . . . . . 1 . 2 . . . . . . . Overload Shots 4 | . . 2 . . . . . . . . . . . 2 . . Effects 2 | . . 2 . . . . . . . . . . . . . . Energy Bleed 2 | . . 2 . . . . . . . . . . . . . . Overflow Damage 859 | . . . . . 158 . . 217 129 174 . . 3 178 . . Projectiles 250 | . . . . . 58 . . . 36 . . . 3 153 . . Explosions 198 | . . . . . 10 . . . 38 125 . . . 25 . . Melee 411 | . . . . . 90 . . 217 55 49 . . . . . . Knockbacks 30 | . . . . . 15 . . . . . . 5 . 9 1 . Impact 2 | . . . . . 1 . . . . . . . . . 1 . Kinetic 26 | . . . . . 14 . . . . . . 4 . 8 . . Secondary 2 | . . . . . . . . . . . . 1 . 1 . . Self-Inflicted Damage 287 | . . . . . 5 . . . . 59 . 76 . 68 79 . Shots 9 | . . . . . . . . . . 2 . 1 . 6 . . Rammed 3 | . . . . . 1 . . . . 1 . 1 . . . . Targets Rammed 5 | . . . . . 1 . . . . 1 . 1 . . 2 . Kicked 2 | . . . . . . . . . . . . . . . 2 . Crushed . | . . . . . . . . . . . . . . . . . Highest Temperature 432 | . 6 120 132 . 295 249 432 2 225 . . 92 . 168 6 3 Average Temperature 60 | . 6 41 40 . 76 113 117 1 50 . . 36 . 66 4 3 Received Heat Transfer 2320 | . 18 282 114 . 330 37 65 . 117 233 21 189 . 697 153 64 Effects 1 | . . . . . . . 1 . . . . . . . . . Shutdowns 1 | . . . . . . . 1 . . . . . . . . . Siege Activations 1 | . . . . . . . . . . . . . . 1 . . Total Turns 6 | . . . . . . . . . . . . . . 6 . . Longest Duration 6 | . . . . . . . . . . . . . . 6 . . Martial Activations . | . . . . . . . . . . . . . . . . . Shielding Activations . | . . . . . . . . . . . . . . . . . Robots Disrupted . | . . . . . . . . . . . . . . . . . Combat Hostiles . | . . . . . . . . . . . . . . . . . Robots Corrupted 15 | . . . . . 7 . . 1 1 1 1 . 1 1 . 2 Combat Hostiles 12 | . . . . . 5 . . 1 . 1 1 . 1 1 . 2 Parts Fried 32 | . . . . . 19 . . . 1 . 1 2 1 2 . 6 Impact Corruptions 11 | . . . . . 3 . . 5 1 2 . . . . . . Robots Melted 8 | . . 1 . . . . . 1 . . . . 1 5 . . Combat Hostiles 7 | . . . . . . . . 1 . . . . 1 5 . . Parts Melted 19 | . . 1 1 . 3 . . . . . . . 3 11 . . Heat Transferred 6970 | . . 518 1036 . 814 . 74 37 74 600 . 470 258 3064 . 25 Parts Sabotaged . | . . . . . . . . . . . . . . . . . Parts Stolen . | . . . . . . . . . . . . . . . . . Parts Stripped . | . . . . . . . . . . . . . . . . . Power Chain Reactions 3 | . . . . . . . . . . . . 1 . 1 . 1 Alert | -11 -10 -10 -7 -7 -5 -5 -5 -5 -4 -4 -3 -2 -2 -2 -1 -1 ------- Run | Yrd Mat Sub Rec Scr Fac Upp Upp Zhi Pro Fac Res Res Tes Sec Acc Com Maximum Alert Level 5 | . . . . . 2 . . . . 5 4 5 4 5 5 5 Low Security (%) 41 | 100 100 . 100 . 69 . . . . . . . . . . . Level 1 4 | . . . . . 28 . . . . . . . . . . . Level 2 3 | . . . . . 2 . . . . 10 . 9 . 10 . . Level 3 27 | . . . . . . . . . . 37 69 52 60 72 47 . Level 4 14 | . . . . . . . . . . 45 30 20 39 11 9 50 Level 5 5 | . . . . . . . . . . 6 . 9 . . . 49 High Security . | . . . . . . . . . . . . 8 . . . . Max Security 2 | . . . . . . . . . . . . . . 4 43 . Peak Influence 1800 | 5 50 . 38 . 552 . . . . 1620 1146 1781 1157 1800 1753 1350 Initial 1100 | . . . 4 . . . . . . 642 828 642 1100 588 1100 1100 Average 574 | 1 11 . 8 . 124 . . . . 1141 991 1163 1093 937 1284 1257 Influence Increases 12031 | 15 50 180 321 . 1294 546 248 18 285 1908 719 1985 196 1635 1066 1565 Destroy 0b10 Robot/C 5380 | . 40 120 80 . 700 300 180 . 260 440 380 1020 120 800 320 620 Destroy 0b10 Robot/NC 350 | 15 . . 40 . 55 . . 15 5 30 20 60 5 55 5 45 Destroy Leader 958 | . 10 . . . 168 40 10 . 20 60 94 220 22 156 60 98 Allied During Kill 1200 | . . . . . 102 206 58 3 . 48 121 338 25 8 147 144 Trap Triggered on 0b10 10 | . . . . . 10 . . . . . . . . . . . Successful Hack 171 | . . . 49 . 17 . . . . 46 . 14 . 8 . 37 Select Force Hacks 170 | . . . 150 . . . . . . 20 . . . . . . Disable Machine 615 | . . . . . 30 . . . . 255 15 15 15 180 90 15 Destroy Structure 1467 | . . . 2 . 122 . . . . 274 14 273 9 293 219 261 Advance Influence 600 | . . . . . . . . . . 600 . . . . . . Partial Spotted 45 | . . . . . 15 . . . . . . 15 . . 15 . Lose Combat Pursuer 1065 | . . 60 . . 75 . . . . 135 75 30 . 135 210 345 Influence Decreases 11067 | 15 30 189 324 8 748 617 427 314 218 397 1154 1357 1025 1342 1690 1212 Entered New Map 4418 | . . 10 7 8 . 203 91 296 . 25 750 501 775 458 720 574 Time Decay 4097 | 15 30 179 296 . 507 404 286 18 208 222 334 416 230 614 140 198 Lost Part 562 | . . . 21 . 171 10 10 . 10 70 30 80 . 150 10 . Lost Ally 1990 | . . . . . 70 . 40 . . 80 40 360 20 120 820 440 Squads Dispatched 85 | . 1 . . . 11 . . . . 13 10 13 2 15 19 1 Investigation 15 | . . . . . 5 . . . . 4 2 3 . . 1 . Extermination 19 | . . . . . 4 . . . . 1 2 3 1 5 2 1 Reinforcement 17 | . 1 . . . 2 . . . . 5 1 5 1 2 . . Assault 30 | . . . . . . . . . . 2 2 2 . 8 16 . Garrison 4 | . . . . . . . . . . 1 3 . . . . . Intercept . | . . . . . . . . . . . . . . . . . Searches Triggered . | . . . . . . . . . . . . . . . . . Construction Impeded 2 | . . . . . . . . . . 1 . 1 . . . . Haulers Reinforced 3 | . . . . . 1 . . . . 1 . 1 . . . . Active Scanning Responses . | . . . . . . . . . . . . . . . . . Cargo Convoy Interrupts . | . . . . . . . . . . . . . . . . . Stealth | -11 -10 -10 -7 -7 -5 -5 -5 -5 -4 -4 -3 -2 -2 -2 -1 -1 --------- Run | Yrd Mat Sub Rec Scr Fac Upp Upp Zhi Pro Fac Res Res Tes Sec Acc Com Distress Signals 37 | . . . . . 2 . . . . 1 2 5 . 6 4 17 Communications Jammed 176 | . . . . . . . . . . . . 114 . 62 . . Distress Signals 176 | . . . . . . . . . . . . 114 . 62 . . Times Spotted 417 | . 3 17 5 . 47 10 8 . 16 44 26 67 9 76 55 34 Peak Tracking Total 25 | . 2 6 2 . 5 4 5 . 5 14 6 7 4 25 21 24 Tactical Retreats 31 | . . 3 . . 3 . . . . 5 2 1 . 4 7 6 Traps | -11 -10 -10 -7 -7 -5 -5 -5 -5 -4 -4 -3 -2 -2 -2 -1 -1 ------- Run | Yrd Mat Sub Rec Scr Fac Upp Upp Zhi Pro Fac Res Res Tes Sec Acc Com Traps Triggered 7 | . . . . 1 2 . . . . . . 1 1 . 2 . Indirectly . | . . . . . . . . . . . . . . . . . Trap Hack Attempts 25 | . . . . . 25 . . . . . . . . . . . Triggered . | . . . . . . . . . . . . . . . . . Disarmed 2 | . . . . . 2 . . . . . . . . . . . Reprogrammed . | . . . . . . . . . . . . . . . . . Reused 1 | . . . . . 1 . . . . . . . . . . . Traps Extracted . | . . . . . . . . . . . . . . . . . Installed 2 | . . . . 1 1 . . . . . . . . . . . Triggered 1 | . . . . . 1 . . . . . . . . . . . Most Traps Carried 2 | . . 2 2 2 1 . . . . . . . . . . . Machines | -11 -10 -10 -7 -7 -5 -5 -5 -5 -4 -4 -3 -2 -2 -2 -1 -1 ---------- Run | Yrd Mat Sub Rec Scr Fac Upp Upp Zhi Pro Fac Res Res Tes Sec Acc Com Machines Disabled 54 | . . 4 . . 2 . 4 2 . 17 1 1 1 15 6 1 Max in Single Turn 5 | . . 1 . . . . . 1 . 5 1 1 1 2 2 1 Garrison Access 2 | . . . . . . . . . . . . 1 . . 1 . Phase Generator 1 | . . . . . . . . . . . . . . . . 1 Machines Repaired . | . . . . . . . . . . . . . . . . . Machines Dismantled . | . . . . . . . . . . . . . . . . . Machines Sabotaged . | . . . . . . . . . . . . . . . . . Overloaded Fab Kills . | . . . . . . . . . . . . . . . . . Hacking | -11 -10 -10 -7 -7 -5 -5 -5 -5 -4 -4 -3 -2 -2 -2 -1 -1 --------- Run | Yrd Mat Sub Rec Scr Fac Upp Upp Zhi Pro Fac Res Res Tes Sec Acc Com Machines Accessed 64 | . . 3 11 3 10 . . 4 . 8 4 6 2 6 3 4 Terminals 25 | . . . 6 . 5 . . . . 2 1 2 . 5 . 4 Fabricators 7 | . . . . . 2 . . . . 1 1 2 . . 1 . Repair Stations 4 | . . . . . 2 . . . . 1 . . 1 . . . Recycling Units 12 | . . . 5 . 1 . . . . 3 1 1 . . 1 . Scanalyzers 2 | . . . . . . . . . . 1 . . . 1 . . Garrison Access 4 | . . . . . . . . . . . 1 1 1 . 1 . Total Hacks 143 | . . 3 27 11 26 . . 17 . 18 8 11 3 9 4 6 Successful 82 | . . 3 16 11 12 . . 17 . 8 . 6 . 4 1 4 Failed 61 | . . . 11 . 14 . . . . 10 8 5 3 5 3 2 Catastrophic 12 | . . . 1 . 3 . . . . 1 2 1 . 1 2 1 Database Lockouts . | . . . . . . . . . . . . . . . . . Manual 62 | . . . 22 . 10 . . . . 12 3 6 . 4 2 3 Terminals 55 | . . . 19 . 12 . . . . 8 2 3 . 5 . 6 Fabricators 17 | . . . . . 9 . . . . 1 1 5 . . 1 . Repair Stations 7 | . . . . . 3 . . . . 3 . . 1 . . . Recycling Units 21 | . . . 8 . 2 . . . . 4 3 2 . . 2 . Scanalyzers 6 | . . . . . . . . . . 2 . . . 4 . . Garrison Access 6 | . . . . . . . . . . . 2 1 2 . 1 . Terminal Hacks 46 | . . 3 4 11 2 . . 17 . 2 . . . 4 . 3 Record 9 | . . . . 4 . . . 5 . . . . . . . . Part Schematic 6 | . . . 1 . . . . 4 . 1 . . . . . . Robot Analysis 10 | . . . . 6 . . . 4 . . . . . . . . Prototype ID Bank 4 | . . . . . . . . 4 . . . . . . . . Open Door 5 | . . 1 . . . . . . . . . . . 3 . 1 Branch Access Points 1 | . . . . . 1 . . . . . . . . . . . Terminal Index 2 | . . . 1 . . . . . . . . . . . . 1 Fabricator Index 1 | . . . . . 1 . . . . . . . . . . . Zone Layout 3 | . . . 2 . . . . . . 1 . . . . . . Proto ID Catalog 2 | . . 1 . 1 . . . . . . . . . . . . Activate Exoskeleton 1 | . . . . . . . . . . . . . . 1 . . Disengage Seal 1 | . . . . . . . . . . . . . . . . 1 Release Object 1 | . . 1 . . . . . . . . . . . . . . Fabricator Hacks 10 | . . . . . 7 . . . . . . 3 . . . . Load Schematic 6 | . . . . . 4 . . . . . . 2 . . . . Build 4 | . . . . . 3 . . . . . . 1 . . . . Repair Station Hacks 2 | . . . . . 1 . . . . 1 . . . . . . Scan Component 2 | . . . . . 1 . . . . 1 . . . . . . Recycling Unit Hacks . | . . . . . . . . . . . . . . . . . Scanalyzer 1 | . . . . . . . . . . 1 . . . . . . Insert Component 1 | . . . . . . . . . . 1 . . . . . . Garrison Access Hacks 1 | . . . . . . . . . . . . 1 . . . . Seal Access 1 | . . . . . . . . . . . . 1 . . . . Unauthorized Hacks 22 | . . . 12 . 2 . . . . 4 . 2 . . 1 1 Terminals 10 | . . . 7 . . . . . . 1 . 1 . . . 1 Botnet 5 | . . . 2 . . . . . . 1 . 1 . . . 1 Skim 5 | . . . 5 . . . . . . . . . . . . . Fabricators 2 | . . . . . 1 . . . . 1 . . . . . . Download 1 | . . . . . . . . . . 1 . . . . . . Recompile 1 | . . . . . 1 . . . . . . . . . . . Repair Stations . | . . . . . . . . . . . . . . . . . Recycling Units 10 | . . . 5 . 1 . . . . 2 . 1 . . 1 . Tunnel 5 | . . . 5 . . . . . . . . . . . . . Fedlink 1 | . . . . . . . . . . 1 . . . . . . Scrapoids 4 | . . . . . 1 . . . . 1 . 1 . . 1 . Scanalyzers . | . . . . . . . . . . . . . . . . . Garrison Access . | . . . . . . . . . . . . . . . . . Data Cores Recovered . | . . . . . . . . . . . . . . . . . Used . | . . . . . . . . . . . . . . . . . Hacking Detections 38 | . . . 6 . 8 . . . . 5 4 4 2 4 3 2 Full Trace Events 7 | . . . 1 . 1 . . . . 1 2 2 . . . . Feedback Events 1 | . . . . . . . . . . . 1 . . . . . Corruption 1 | . . . . . . . . . . . 1 . . . . . Feedback Blocked . | . . . . . . . . . . . . . . . . . Robot Schematics Acquired 3 | . . . . . . . . . . . . . . 3 . . Robots Built . | . . . . . . . . . . . . . . . . . Authchips . | . . . . . . . . . . . . . . . . . Time . | . . . . . . . . . . . . . . . . . Total Robot Build Rating . | . . . . . . . . . . . . . . . . . Part Schematics Acquired 54 | . . . 1 17 10 . 1 7 5 7 4 . . 2 . . Parts Built 4 | . . . . . 3 . . . . . . 1 . . . . Authchips 3 | . . . . . 3 . . . . . . . . . . . Time 236 | . . . . . 194 . . . . . . 42 . . . . Total Part Build Rating 18 | . . . . . 14 . . . . . . 4 . . . . Parts Repaired . | . . . . . . . . . . . . . . . . . Time . | . . . . . . . . . . . . . . . . . Parts Recycled . | . . . . . . . . . . . . . . . . . Recycled Matter . | . . . . . . . . . . . . . . . . . Retrieved Matter . | . . . . . . . . . . . . . . . . . Retrieved Components . | . . . . . . . . . . . . . . . . . Parts Scanalyzed . | . . . . . . . . . . . . . . . . . Part Schematics Acquired . | . . . . . . . . . . . . . . . . . Parts Damaged . | . . . . . . . . . . . . . . . . . Bothacking | -11 -10 -10 -7 -7 -5 -5 -5 -5 -4 -4 -3 -2 -2 -2 -1 -1 ------------ Run | Yrd Mat Sub Rec Scr Fac Upp Upp Zhi Pro Fac Res Res Tes Sec Acc Com Used RIF Installer . | . . . . . . . . . . . . . . . . . Robots Hacked 5 | . . . . 1 4 . . . . . . . . . . . Non-combat 3 | . . . . . 3 . . . . . . . . . . . Combat 2 | . . . . 1 1 . . . . . . . . . . . Robot Hacks Applied 6 | . . . . 1 5 . . . . . . . . . . . parse_system 4 | . . . . 1 3 . . . . . . . . . . . find_chute 1 | . . . . . 1 . . . . . . . . . . . find_recycling 1 | . . . . . 1 . . . . . . . . . . . Relay Couplers Released 1 | . . . . . . . . . . . . . . . 1 . Machine Destruction 1 | . . . . . . . . . . . . . . . 1 . Fabnet Peak Effective % . | . . . . . . . . . . . . . . . . . Robots Rewired 7 | . . . 7 . . . . . . . . . . . . . Allies Hacked 7 | . . . . . . . . . . . 1 2 . 2 2 . Hacks Repelled . | . . . . . . . . . . . . . . . . . Allies | -11 -10 -10 -7 -7 -5 -5 -5 -5 -4 -4 -3 -2 -2 -2 -1 -1 -------- Run | Yrd Mat Sub Rec Scr Fac Upp Upp Zhi Pro Fac Res Res Tes Sec Acc Com Total Allies 187 | . . . 7 . 8 . . . . 6 9 21 1 3 65 67 Largest Group 19 | . . . 7 7 8 8 7 3 3 5 7 11 4 4 18 19 Highest-Rated Group 500 | . . . 161 162 268 263 212 59 59 235 70 385 39 34 500 471 Highest-Rated Ally 234 | . . . 40 40 50 47 47 47 47 47 10 67 10 10 67 234 Total Orders 30 | . . . 1 23 3 . . . . . . 3 . . . . STAY 11 | . . . . 9 2 . . . . . . . . . . . ROAM 1 | . . . . 1 . . . . . . . . . . . . FOLLOW 5 | . . . . 4 1 . . . . . . . . . . . DROP 2 | . . . . 2 . . . . . . . . . . . . PICKUP 8 | . . . 1 7 . . . . . . . . . . . . RETURN 3 | . . . . . . . . . . . . 3 . . . . Ally Attacks 995 | . . . 7 . 46 55 35 . 4 63 121 214 124 55 169 102 Total Damage 17154 | . . . 83 . 748 1004 933 . 55 1446 1542 3765 1794 640 3287 1857 Kills 106 | . . . 1 . 6 11 10 . . 5 21 24 1 3 14 10 Allies Corrupted 6 | . . . . . . . . . . . . 3 . 1 1 1 Allies Melted . | . . . . . . . . . . . . . . . . . Intel | -11 -10 -10 -7 -7 -5 -5 -5 -5 -4 -4 -3 -2 -2 -2 -1 -1 ------- Run | Yrd Mat Sub Rec Scr Fac Upp Upp Zhi Pro Fac Res Res Tes Sec Acc Com Active Infowar (turns) 10681 | 78 163 1479 . . 1824 976 634 205 515 477 753 1111 487 1979 . . Optics 2 | . . . . . . . . . . . . . . 2 . . Sensors 3955 | . . . . . . 971 634 177 336 41 107 297 331 1061 . . Terrain 6 | . . 6 . . . . . . . . . . . . . . Structural 4185 | . . . . . . 654 634 205 515 136 . . 273 1768 . . Seismic 4486 | 78 163 1475 . . 688 964 254 . . . 192 269 . 403 . . Machine Analysis 8959 | . . . . . 1824 976 634 205 515 477 753 1111 487 1977 . . Jamming 2999 | . . . . . . . . . . . 402 1107 . 1490 . . Robot Analysis Total 10 | . . . . 6 . . . 4 . . . . . . . . Derelict Logs Recovered 8 | . . 1 . 3 . 2 1 . 1 . . . . . . . Drone Launches 3 | . . . . . . . . . . . . 3 . . . . Drone Recoveries 3 | . . . . . . . . . . . . 3 . . . . Exploration | -11 -10 -10 -7 -7 -5 -5 -5 -5 -4 -4 -3 -2 -2 -2 -1 -1 ------------- Run | Yrd Mat Sub Rec Scr Fac Upp Upp Zhi Pro Fac Res Res Tes Sec Acc Com Turns Passed 24280 | 120 163 4139 3437 5689 1830 976 634 205 515 477 753 1111 487 2139 530 1075 Spaces Moved 16333 | 70 40 1597 988 3672 1134 895 643 175 528 423 684 933 344 1238 1167 1802 Core 16 | 8 . . 1 2 4 . . . . . . . . 1 . . Treads 1451 | 21 40 683 55 . . . . . . . . . . 652 . . Legs 3298 | . . . . . . 4 . . . . 1 . . 324 1167 1802 Wheels 11200 | 41 . 914 932 3302 1130 891 643 175 528 423 683 933 344 261 . . Hover . | . . . . . . . . . . . . . . . . . Flight 368 | . . . . 368 . . . . . . . . . . . . Fastest Speed 30 | 50 160 115 200 34 80 95 80 80 80 80 80 90 90 30 30 30 Average Speed 121 | 112 160 239 320 138 106 99 90 80 80 80 86 90 90 120 30 30 Slowest Speed 3600 | 160 160 960 3600 550 1100 190 110 90 80 80 250 90 120 300 30 90 Overloaded Moves . | . . . . . . . . . . . . . . . . . Propulsion Burnouts . | . . . . . . . . . . . . . . . . . Robots Hopped 2 | . . . . . . . . . . . . . . . . 2 Potential Cave-ins 7 | . . . . . . . . . . . . . . 7 . . Cave-ins Triggered 1 | . . . . . . . . . . . . . . 1 . . Teleports 2 | . . . . . . . . . . 1 . . . . 1 . Exploration Rate (%) 48 | 4 8 61 96 94 18 96 75 60 71 19 22 31 31 56 34 51 Regions Visited 16 Branch Regions 10 Pre-discovered Areas 15 | . . 1 9 2 . . . 3 . . . . . . . . Known Exits Taken 7 | . . . . . 1 . . . 1 1 1 1 1 1 . . Unknown Exits Taken 9 | 1 1 1 1 1 . 1 1 1 . . . . . . 1 . Scrap Searched 23 | . . 5 . 7 . 3 3 . 5 . . . . . . . Spaces Dug 88 | . . . . . 3 . . . . 3 1 3 3 22 47 6 Terrain Destroyed 684 | . . 1 1 . 64 16 6 . 91 124 16 79 3 108 67 108 Melee 4 | . . . . . 1 . . . . 2 . 1 . . . . Projectile 386 | . . 1 1 . 32 1 6 . 23 9 16 73 3 70 59 92 AOE 293 | . . . . . 31 15 . . 68 113 . 4 . 38 8 16 Terrain Rammed 1 | . . . . . . . . . . . . . . . 1 . Walls Destroyed 1 | . . . . . . . . . . . . . . . 1 . Machines Disabled . | . . . . . . . . . . . . . . . . . Actions | -11 -10 -10 -7 -7 -5 -5 -5 -5 -4 -4 -3 -2 -2 -2 -1 -1 --------- Run | Yrd Mat Sub Rec Scr Fac Upp Upp Zhi Pro Fac Res Res Tes Sec Acc Com Total 19620 | 97 131 1810 1210 4307 1558 972 682 220 589 502 795 1110 472 1624 1308 2233 Wait 1703 | 2 87 103 118 484 193 40 14 5 13 21 13 53 60 115 74 308 Move 16312 | 69 39 1596 987 3671 1133 894 642 174 527 422 683 933 343 1236 1166 1797 Hop 2 | . . . . . . . . . . . . . . . . 2 Pick Up 223 | 10 . 23 24 74 18 7 1 3 2 4 9 5 2 33 4 4 Fast Attach 161 | 4 . 7 4 20 21 5 3 9 6 4 14 10 8 23 9 14 Attach 87 | 3 . 5 2 4 16 3 2 2 2 6 3 3 6 19 4 7 Detach 42 | . . 1 . 1 5 1 2 1 1 3 2 1 6 7 . 11 Swap 113 | 2 . 8 2 4 26 5 1 1 7 2 11 12 8 15 5 4 Drop 214 | . . 9 12 47 14 9 9 12 8 2 15 12 7 25 11 22 Fire 649 | 7 5 58 26 . 91 6 8 3 21 26 44 78 32 150 30 64 Melee 42 | . . . . 1 14 1 . 10 2 11 . 1 . . 2 . Ram 3 | . . . . . 1 . . . . 1 . . . . 1 . Kick 2 | . . . . . . . . . . . . . . . 2 . Crush . | . . . . . . . . . . . . . . . . . Escape Stasis 1 | . . . . . . . . . . . . . . 1 . . Rewire 39 | . . . 35 . . 1 . . . . 1 2 . . . . Trap 27 | . . . . 1 26 . . . . . . . . . . . Miscellaneous . | . . . . . . . . . . . . . . . . . Route ------- -11/Scrapyard -10/Materials -10/Subcaves (discovered 2 exits: [*Mat] / *Rec) -7/Recycling (discovered 2 exits: *Fac / *Scr) -7/Scraptown (discovered 2 exits: *Fac x2) -5/Factory (discovered 5 exits: Fac / *Upp x2 / Ext x2) -5/Upper Caves -5/Upper Caves (discovered 2 exits: *Fac / *Zhi) -5/Zhirov -4/Proximity Caves -4/Factory (discovered 2 exits: *Res x2) -3/Research (discovered 2 exits: *Res / Qua) -2/Research -2/Testing (discovered 3 exits: *Acc / *Sec / *Frg) -2/Section 7 -1/Access -1/Command (discovered 2 exits: [*Sur x2]) To Fleet Rendezvous History --------- Turn | Location | Event 3 | -11/Scrapyard | Discovered new exit (range 15) 121 | -11/Scrapyard | Entered Materials 249 | -10/Materials | Discovered new exit (range 6) 284 | -10/Materials | Entered Subcaves 285 | -10/Subcaves | Approached by a straggling Scientist 292 | -10/Subcaves | Learned location of Zion (-7) 312 | -10/Subcaves | Build established: Mutant 878 | -10/Subcaves | A swath of the cavern ceiling suddenly collapsed 923 | -10/Subcaves | Discovered new exit (range 15) 1098 | -10/Subcaves | Visited 4L-MR0's lab 1121 | -10/Subcaves | Found Tower Shield 1123 | -10/Subcaves | Attached Tower Shield, gained temporary slots: Power, Propulsion x2, Utility x2, Weapon x2 1296 | -10/Subcaves | Discovered new exit (range 9) 1496 | -10/Subcaves | Ambushed by Subdwellers from Twisted Machinery 1890 | -10/Subcaves | Found SUBCON Basin 2059 | -10/Subcaves | Build established: Hauler-Gunner 3528 | -10/Subcaves | Build established: Hauler-Mutant 4116 | -10/Subcaves | Shifting Twisted Machinery released Sub. Power Source 4184 | -10/Subcaves | Shifting Twisted Machinery released Scrap Shield 4423 | -10/Subcaves | Entered Recycling 4863 | -7/Recycling | Scanned before Scraplab entrance 5997 | -7/Recycling | Discovered new exit (range 10) 6540 | -7/Recycling | Entered Scraplab 6903 | -7/Recycling | Core integrity fell below 50% 7034 | -7/Recycling | Learned 8 Factory zone layouts 7090 | -7/Recycling | Learned Extension garrison access intel 7174 | -7/Recycling | Learned location of Lower Caves (-7) 7285 | -7/Recycling | Learned 4 Factory zone layouts 7475 | -7/Recycling | Core integrity fell below 20% 7843 | -7/Recycling | Discovered new exit (range 3) 7860 | -7/Recycling | Entered Scraptown 7860 | -7/Scraptown | Accompanied by 7 allies 8240 | -7/Scraptown | Scanned Subdweller tech in exchange for log data 8244 | -7/Scraptown | Learned location of 1 exit from Research 8246 | -7/Scraptown | Learned location of 1 exit from Factory 8250 | -7/Scraptown | Learned Factory terminal intel 8284 | -7/Scraptown | Discovered new exit (range 5) 8512 | -7/Scraptown | Visited Bundlers 8630 | -7/Scraptown | Visited Cave Peace 8958 | -7/Scraptown | Heard Great Nut preacher, LISTEN AND RECITE! 9010 | -7/Scraptown | Visited IN-MT5's Study 9046 | -7/Scraptown | Visited Junk Repository 9138 | -7/Scraptown | Visited Supply Room 9188 | -7/Scraptown | Visited TADAMA 9278 | -7/Scraptown | Visited Cyclists 9491 | -7/Scraptown | Warned about trapping Scraptown 9595 | -7/Scraptown | System corruption cleaned by C-Scrubber 9670 | -7/Scraptown | Visited UFD Registry 9670 | -7/Scraptown | Registered with UFD as "Armorskull" 9708 | -7/Scraptown | Build established: Commander-Mutant 9708 | -7/Scraptown | Entered Cyclist Reading Room 9753 | -7/Scraptown | Visited LU-1G1's Boring Crew 9811 | -7/Scraptown | Visited Observation Area 9855 | -7/Scraptown | Visited Science Guys 9894 | -7/Scraptown | Visited Science Testing Area 9922 | -7/Scraptown | Visited Infowarlord's Domain 9935 | -7/Scraptown | Visited Scrap Suit Storage 9990 | -7/Scraptown | Visited Supply Room 10014 | -7/Scraptown | Visited Chapter 10 10061 | -7/Scraptown | Delivered Scrap Shield to a Scientist 10161 | -7/Scraptown | Visited Analyses Database 10184 | -7/Scraptown | Visited A0-MCA Data Center 10234 | -7/Scraptown | Released all parts (6) 10363 | -7/Scraptown | Given an A+ rating by A0-MCA 10366 | -7/Scraptown | Found A0-MCA's Component Scanner 10560 | -7/Scraptown | Build established: Hauler-Mutant 10836 | -7/Scraptown | Discovered new exit (range 3) 12141 | -7/Scraptown | Build established: Commander-Mutant 12267 | -7/Scraptown | Tech Extrapolator generated special schematic: Deep Structural Scanner 12940 | -7/Scraptown | Tech Extrapolator generated special schematic: Machine Rigger 13488 | -7/Scraptown | Met Optimus 13488 | -7/Scraptown | Accepted into 0bPrime 13549 | -7/Scraptown | Entered Factory 13549 | -5/Factory | Accompanied by 7 allies 13549 | -5/Factory | Evolved 10 slots: Power x1, Propulsion x2, Utility x6, Weapon x1 13550 | -5/Factory | Identified exit to Factory 13551 | -5/Factory | Identified exit to Extension 13552 | -5/Factory | Loaded intel: 26 terminal locations 13723 | -5/Factory | Lost 3 allies 13798 | -5/Factory | Lost 4 allies 13984 | -5/Factory | Build established: Scavenger-Tank 14248 | -5/Factory | Identified exit to Upper Caves 14284 | -5/Factory | Tech Extrapolator generated special schematic: Active Sensor Spoofer 14496 | -5/Factory | Build established: Scavenger-Mutant 14667 | -5/Factory | System corruption reached 10% 14711 | -5/Factory | Lost 4 parts (2n1u1w) 14952 | -5/Factory | Lost 3 parts (1n1u1w) 14977 | -5/Factory | Fabricated IN-MT5's Pitchfork "Insurrection"? 15012 | -5/Factory | Lost 4 parts (1p1n1u1w) 15084 | -5/Factory | Fabricated Deep Structural Scanner (x1) 15094 | -5/Factory | Reprogrammed and armed K-01 Serf 15162 | -5/Factory | Fabricated IN-MT5's Pitchfork "Insurrection" (x1) 15275 | -5/Factory | Scrapoids reinforcements arrived? 15309 | -5/Factory | Reprogrammed and armed K-01 Serf 15317 | -5/Factory | Reprogrammed and armed K-01 Serf 15379 | -5/Factory | Entered Upper Caves 15379 | -5/Upper Caves | Accompanied by 8 allies 15381 | -5/Upper Caves | UFD Scientist delivered a prototype 15384 | -5/Upper Caves | Found Prototype Protection 15387 | -5/Upper Caves | Identified Enh. Scrap Shield 15864 | -5/Upper Caves | Learned Factory trap positions 15915 | -5/Upper Caves | Entered a destroyed Warlord outpost 16008 | -5/Upper Caves | Discovered new exit (range 17) 16074 | -5/Upper Caves | Found Scrap Suit 16122 | -5/Upper Caves | Learned Factory interactive machine intel 16355 | -5/Upper Caves | Entered another Upper Caves area 16355 | -5/Upper Caves | Accompanied by 7 allies 16383 | -5/Upper Caves | Discovered exit to Factory (range 9) 16609 | -5/Upper Caves | Learned location of 1 exit from Factory 16611 | -5/Upper Caves | Attracted the attention of an 0b10 base 16646 | -5/Upper Caves | Lost 3 allies 16661 | -5/Upper Caves | Found Scrap Suit 16819 | -5/Upper Caves | Discovered new exit (range 13) 16910 | -5/Upper Caves | Attracted the attention of an 0b10 checkpoint 16928 | -5/Upper Caves | Build established: Scavenger-Scrapper 16989 | -5/Upper Caves | Entered Zhirov 16989 | -5/Zhirov | Accompanied by 3 allies 16989 | -5/Zhirov | Discovered new exit (range 3) 17005 | -5/Zhirov | Met Zhirov 17019 | -5/Zhirov | Learned location of Quarantine (-3) 17019 | -5/Zhirov | Learned location of Testing (-2) 17019 | -5/Zhirov | Learned location of Command (-1) 17027 | -5/Zhirov | Zhirov requested help retrieving the SGEMP Prototype 17040 | -5/Zhirov | Found Alien Artifact 17040 | -5/Zhirov | Identified Integrated Dissipator 17040 | -5/Zhirov | Installed Integrated Dissipator, increased core heat dissipation (+20) 17053 | -5/Zhirov | Found Alien Artifact 17194 | -5/Zhirov | Entered Proximity Caves 17194 | -4/Proximity Caves | Accompanied by 3 allies 17311 | -4/Proximity Caves | Spotter reported a threat 17364 | -4/Proximity Caves | Spotter reported a threat 17445 | -4/Proximity Caves | Tech Extrapolator generated special schematic: Energy Deflector 17497 | -4/Proximity Caves | Spotter reported a threat 17550 | -4/Proximity Caves | Spotter reported a threat 17612 | -4/Proximity Caves | Discovered exit to Factory (range 18) 17709 | -4/Proximity Caves | Entered Factory 17709 | -4/Factory | Evolved 2 slots: Utility x2 17710 | -4/Factory | Identified exit to Research 17711 | -4/Factory | Loaded intel: 106 trap records 17712 | -4/Factory | Loaded intel: 53 interactive machine locations 17724 | -4/Factory | Loaded intel: 8 recycling unit locations 17781 | -4/Factory | Lost 3 parts (1p1u1w) 17891 | -4/Factory | Spotted B-86 Titan 17959 | -4/Factory | First assault squad dispatched 17993 | -4/Factory | Scrapoid reinforcements arrived 18039 | -4/Factory | Garrison activated, responded to threat 18079 | -4/Factory | Lost 5 allies 18104 | -4/Factory | Identified Transdimensional Reconstructor 18114 | -4/Factory | Warped through subspace 18114 | -4/Factory | Discovered exit to Research (range 3) 18155 | -4/Factory | Reprogrammed and armed K-01 Serf 18156 | -4/Factory | Tech Extrapolator generated special schematic: Telecube 18186 | -4/Factory | Entered Research 18186 | -3/Research | Accompanied by 1 ally 18186 | -3/Research | Evolved 2 slots: Utility x2 18187 | -3/Research | Identified exit to Quarantine 18310 | -3/Research | Garrison activated, responded to threat 18349 | -3/Research | Reprogrammed and armed K-01 Serf 18358 | -3/Research | Reprogrammed and armed K-01 Serf 18358 | -3/Research | Reprogrammed and armed K-01 Serf 18360 | -3/Research | Reprogrammed and armed K-01 Serf 18364 | -3/Research | Reprogrammed and armed K-01 Serf 18519 | -3/Research | Reprogrammed and armed K-01 Serf 18550 | -3/Research | Reprogrammed and armed K-01 Serf 18656 | -3/Research | Reprogrammed and armed K-01 Serf 18674 | -3/Research | Reprogrammed and armed K-01 Serf 18700 | -3/Research | Found Exp. Sensor Array 18756 | -3/Research | Discovered new exit (range 15) 18822 | -3/Research | Spotted B-86 Titan 18837 | -3/Research | Allies destroyed B-86 Titan 18919 | -3/Research | Identified exit to Research 18936 | -3/Research | First assault squad dispatched 18939 | -3/Research | Entered another Research area 18939 | -2/Research | Accompanied by 7 allies 18939 | -2/Research | Evolved 2 slots: Power x1, Utility x1 18940 | -2/Research | Identified exit to Testing 19019 | -2/Research | Scrapoids reinforcements arrived? 19063 | -2/Research | Spotted B-90 Cyclops 19073 | -2/Research | Allies destroyed B-90 Cyclops 19086 | -2/Research | Reprogrammed and armed K-01 Serf 19128 | -2/Research | Reprogrammed and armed K-01 Serf 19189 | -2/Research | First assault squad dispatched 19257 | -2/Research | Found Prototype Launcher 19257 | -2/Research | Identified Point Singularity Launcher 19272 | -2/Research | Reprogrammed and armed K-01 Serf 19314 | -2/Research | P-80 Master assimilated allied K-01 Serf 19323 | -2/Research | Reprogrammed and armed K-01 Serf 19363 | -2/Research | Lost 7 allies 19389 | -2/Research | Reprogrammed and armed K-01 Serf 19477 | -2/Research | Reprogrammed and armed K-01 Serf 19483 | -2/Research | Reprogrammed and armed K-01 Serf 19537 | -2/Research | Fabricated Deep Structural Scanner (x1) 19551 | -2/Research | Reprogrammed and armed K-01 Serf 19602 | -2/Research | Lost 7 allies 19679 | -2/Research | Reprogrammed and armed K-01 Serf 19681 | -2/Research | Reprogrammed and armed K-01 Serf 19689 | -2/Research | Destroyed 9 combat bots 19691 | -2/Research | Lost 4 parts (1p1u2w) 19787 | -2/Research | Reprogrammed and armed K-01 Serf 19819 | -2/Research | Reprogrammed and armed K-01 Serf 19840 | -2/Research | Reprogrammed and armed K-01 Serf 19880 | -2/Research | Reprogrammed and armed K-01 Serf 19898 | -2/Research | Reprogrammed and armed K-01 Serf 19908 | -2/Research | Reprogrammed and armed K-01 Serf 19954 | -2/Research | High security lockdown imminent 19968 | -2/Research | Reprogrammed and armed K-01 Serf 20009 | -2/Research | Spotted B-90 Cyclops 20034 | -2/Research | High security lockdown engaged 20050 | -2/Research | Entered Testing 20050 | -2/Testing | Accompanied by 4 allies 20153 | -2/Testing | Discovered new exit (range 13) 20239 | -2/Testing | Found Prototype Energy Cannon 20239 | -2/Testing | Identified Cld. Nova Cannon 20275 | -2/Testing | Spotted Fortress 20381 | -2/Testing | Destroyed Fortress 20419 | -2/Testing | Found Prototype Device 20419 | -2/Testing | Identified Exp. Force Field 20483 | -2/Testing | Reprogrammed and armed K-01 Serf 20522 | -2/Testing | Discovered new exit (range 6) 20522 | -2/Testing | Discovered new exit (range 6) 20527 | -2/Testing | Identified exit to Section 7 20530 | -2/Testing | Identified exit to Protoforge 20537 | -2/Testing | Entered Section 7 20537 | -2/Section 7 | Accompanied by 4 allies 20538 | -2/Section 7 | Spotted S7 Guard 20563 | -2/Section 7 | Allies destroyed S7 Guard 20571 | -2/Section 7 | Found Alien Artifact 20571 | -2/Section 7 | Identified Core Regenerator 20571 | -2/Section 7 | Used Core Regenerator, restored core integrity (+115) 20576 | -2/Section 7 | Found Prototype Protection 20576 | -2/Section 7 | Identified Hvy. Regenerative Plating 20622 | -2/Section 7 | Found Integrated Dissipator 20700 | -2/Section 7 | Build established: Scavenger-Skirmisher 20837 | -2/Section 7 | Discovered new exit (range 13) 20851 | -2/Section 7 | Identified exit to Access 20853 | -2/Section 7 | Spotted S7 Guard 20874 | -2/Section 7 | Destroyed S7 Guard 20880 | -2/Section 7 | Installed Integrated Dissipator, increased core heat dissipation (+20) 20888 | -2/Section 7 | Found Alien Artifact 20888 | -2/Section 7 | Identified Core Membrane 20888 | -2/Section 7 | Installed Core Membrane, gained immunity to corruption 20908 | -2/Section 7 | Reprogrammed and armed K-01 Serf 20996 | -2/Section 7 | Found Gamma Bomb Array 21037 | -2/Section 7 | First assault squad dispatched 21159 | -2/Section 7 | Reprogrammed and armed K-01 Serf 21295 | -2/Section 7 | Spotted B-90 Cyclops 21306 | -2/Section 7 | Allies destroyed B-90 Cyclops 21442 | -2/Section 7 | Crushed by falling debris 21475 | -2/Section 7 | Spotted Alpha 7 21475 | -2/Section 7 | Spotted Alpha 7 21479 | -2/Section 7 | Destroyed Alpha 7 21485 | -2/Section 7 | Destroyed Alpha 7 21544 | -2/Section 7 | Spotted B-99 Colossus 21576 | -2/Section 7 | Reprogrammed and armed K-01 Serf 21751 | -2/Section 7 | Found Alien Artifact 21751 | -2/Section 7 | Identified Core Reset Matrix 21751 | -2/Section 7 | Used Core Reset Matrix 21755 | -2/Section 7 | Detected hypermatrix surge 21755 | -2/Section 7 | Sensed 13 artifacts in vicinity 21810 | -2/Section 7 | Found LRC Inertial Stabilizer 21810 | -2/Section 7 | Installed LRC Inertial Stabilizer, increased mass support (+10) 21813 | -2/Section 7 | Found LRC Matter Compressor 21813 | -2/Section 7 | Installed LRC Matter Compressor, increased matter storage capacity (+125) 22250 | -2/Section 7 | Found Sigix Sheargun 22396 | -2/Section 7 | Lost 9 parts (2p2n2u3w) 22514 | -2/Section 7 | Integrated with Sigix Exoskeleton 22566 | -2/Section 7 | Found Transdimensional Reconstructor 22567 | -2/Section 7 | Found Transdimensional Reconstructor 22571 | -2/Section 7 | Spotted Executioner 22572 | -2/Section 7 | Spotted Executioner 22576 | -2/Section 7 | Destroyed Executioner 22581 | -2/Section 7 | Destroyed Executioner 22587 | -2/Section 7 | Found Prototype Device 22587 | -2/Section 7 | Identified Adv. Kinecellerator 22589 | -2/Section 7 | Found Prototype Processor 22589 | -2/Section 7 | Identified Exp. Core Analyzer 22592 | -2/Section 7 | Found Exp. Core Analyzer 22596 | -2/Section 7 | Found Prototype Processor 22596 | -2/Section 7 | Identified Exp. Targeting Computer 22656 | -2/Section 7 | Discovered exit to Access (range 16) 22676 | -2/Section 7 | Entered Access 22676 | -1/Access | Evolved 2 slots: Utility x1, Weapon x1 22681 | -1/Access | Emitted hypermatrix ping 22686 | -1/Access | Assembled emerged from beneath the floor 22777 | -1/Access | Assembled emerged from beneath the floor 22798 | -1/Access | Assembled emerged from beneath the floor 22815 | -1/Access | Build established: Alien-Sigix 22836 | -1/Access | Assembled emerged from beneath the floor 22872 | -1/Access | Assembled emerged from beneath the floor 22889 | -1/Access | Scrapoid reinforcements arrived 22926 | -1/Access | First assault squad dispatched 22987 | -1/Access | Assembled emerged from beneath the floor 23045 | -1/Access | Lost 8 allies 23058 | -1/Access | Assembled emerged from beneath the floor 23074 | -1/Access | Assembled emerged from beneath the floor 23090 | -1/Access | Discovered new exit (range 18) 23102 | -1/Access | Spotted Striker 23103 | -1/Access | Spotted Striker 23107 | -1/Access | Spotted B-99 Colossus 23117 | -1/Access | Spotted B-99 Colossus 23122 | -1/Access | Sigix Exoskeleton integrity reduced to 80% 23123 | -1/Access | Spotted B-99 Colossus 23131 | -1/Access | Lost 8 allies 23149 | -1/Access | Spotted B-99 Colossus 23160 | -1/Access | Warped through subspace 23179 | -1/Access | Reprogrammed and armed K-01 Serf 23198 | -1/Access | Sigix Exoskeleton integrity reduced to 60% 23203 | -1/Access | Core integrity fell below 50% 23206 | -1/Access | Entered Command 23211 | -1/Command | Emitted hypermatrix ping 23216 | -1/Command | Assembled emerged from beneath the floor 23250 | -1/Command | Assembled emerged from beneath the floor 23274 | -1/Command | Discovered new exit (range 18) 23279 | -1/Command | Disengaged cave seal 23279 | -1/Command | Assembled emerged from the dark tunnel 23328 | -1/Command | Spotted Combat Programmer 23329 | -1/Command | Spotted Combat Programmer 23353 | -1/Command | Destroyed Combat Programmer 23353 | -1/Command | Destroyed Combat Programmer 23372 | -1/Command | Spotted M Guard 23375 | -1/Command | Spotted M Guard 23418 | -1/Command | Destroyed M Guard 23431 | -1/Command | Destroyed M Guard 23431 | -1/Command | All MAIN.C guards destroyed 23439 | -1/Command | Found Corrupted Prototype Device 23439 | -1/Command | Identified AEGIS Remote Shield 23454 | -1/Command | Found Corrupted Prototype Reactor 23454 | -1/Command | Identified Zero-point Reactor 23456 | -1/Command | Lost 4 allies 23462 | -1/Command | Found Corrupted Zero-point Reactor 23468 | -1/Command | Found Corrupted AEGIS Remote Shield 23487 | -1/Command | Reprogrammed and armed K-01 Serf 23493 | -1/Command | Reprogrammed and armed K-01 Serf 23494 | -1/Command | Reprogrammed and armed K-01 Serf 23495 | -1/Command | Reprogrammed and armed K-01 Serf 23518 | -1/Command | Assembled emerged from beneath the floor 23583 | -1/Command | Met MAIN.C 23605 | -1/Command | 0b10 Conduit disabled 23613 | -1/Command | MAIN.C's shell transforms into a squad of autonomous robots 23613 | -1/Command | Destroyed MAIN.C Shell 23613 | -1/Command | Spotted M Shell/Atk 23613 | -1/Command | Spotted M Shell/Def 23613 | -1/Command | Spotted M Shell/Atk 23613 | -1/Command | Spotted M Shell/Def 23614 | -1/Command | Sigix Exoskeleton integrity reduced to 40% 23614 | -1/Command | Spotted M Shell/Def 23614 | -1/Command | Spotted M Shell/Def 23615 | -1/Command | MAIN.C activated Command garrisons 23720 | -1/Command | Lost 4 allies 23749 | -1/Command | Core integrity fell below 20% 23758 | -1/Command | Destroyed MAIN.C 23787 | -1/Command | Discovered new exit (range 182) 23787 | -1/Command | Discovered new exit (range 72) 23787 | -1/Command | Extracted map data and part IDs from MAIN.C's data core 23802 | -1/Command | Destroyed 10 combat bots 23944 | -1/Command | Destroyed M Shell/Atk 23949 | -1/Command | Found Exp. Weapon Cycler 23962 | -1/Command | Phase Generator disabled 24040 | -1/Command | Assembled emerged from beneath the floor 24083 | -1/Command | Assembled emerged from beneath the floor 24099 | -1/Command | Spotted B-99 Colossus 24281 | *** | Heading to fleet! Last Messages --------------- 24072_ Quantum Shear penetrates P-80 Master. 24072_ Destroyed Imp. Antigrav System. 24072_ Quantum Shear penetrates P-80 Master. 24072_ P-80 Master destroyed. 24072_ Quantum Shear penetrates Wall. 24083_ Assembled emerge from beneath the floor. as-34533 melds with Sigix Exoskeleton. as-11975 melds with Sigix Exoskeleton. as-23609 melds with Sigix Exoskeleton. as-97831 melds with Sigix Exoskeleton. as-18860 melds with Sigix Exoskeleton. as-72815 melds with Sigix Exoskeleton. as-61107 melds with Sigix Exoskeleton. 24098_ Detected hypermatrix ping. as-68675 melds with Sigix Exoskeleton. 24199_ The unstable cave ceiling collapses. 24245_ Quantum Shear penetrates Sealed Heavy Doors. 24279_ Dropped Exp. Energy Well. 24280_ Dropped Imp. Matter Neutralizer. Map ----- +----------------------------------------------------+ | # %###"T"## *%! ################### " | | ## %### ""## "#######"#+##################### " | | " %% #######*!##### =!%[ ############### | | "######%= + % = ################### | | % #######! #####[ ################### | | # ####### %#####%= ################### | | ############% #####!% ################### | | #### ####### #####+########+##################### | | """######### # *!%[ ##### ##################### | | """######### # !=%= ##### ##################### | | """######### # ##### ##################### | | """######### # ] %! ##### #### ######### | | """######### +^ ##### / ######### | | ############ #k !! ########## "" ######### | | # # !! ########## """" ######### | | # # ###] # """" ##??#???? | | "" "" # # ! ### !!! # "" #???????? | | "" """" # ############ !! # #???????? | | "" """" # ############ !! # #???????? | | "" "" # ## #### !+ """" #???????? | | # ## #### # """" #???????? | | # ## = #########+# """" ##??????? | | # ## ######### +^ """" ##??????? | | # ## ######### # ##??????? | | #####+###### ## ## #### # ##??????? | | ###%![=##### #####+#### X ###^^# ##??????? | | ###*T"= !]### + ###?????? | | ###="" ### # ! ##??????? | | ###[* ########## ######## # ##??????? | | #### ########### ######## #####+#####??????? | | #### # """"" # # ##??????? | | #### # ""Y"" + # ##??????? | | #### # # + #???????? | | #### # ##+###+###### # #???????? | | #### # # ######## #???????? | | #### # + ######## #???????? | | #### # #]! ! ######## #???????? | | ### ###########]! ################???????? | | =#################################??????????? | | %################################???????????? | | # *###############################????????????? | | #############################??????????????? | | ##################################???????????????? | | ????????#######################??????????????????? | | ?????????????#??#???#??#?#???????????????????????? | | ?????????????????????????????????????????????????? | | ?????????????????????????????????????????????????? | | ?????????????????????????????????????????????????? | | ?????????????????????????????????????????????????? | | ?????????????????????????????????????????????????? | +----------------------------------------------------+ Best States ------------- Heat Dissipation 181 Energy Generation 75 Energy Capacity 940 Matter Stores 425 Matter Capacity 425 Sight Range 16 Robot Scan Range 20 Terrain Scan Range 16 Terrain Scan Density 10 Jamming Range 14 Additional Mass Support 9 Corruption Containment 8 Corruption Block 20 Armor Coverage 2000 Resistance: KI 50 Resistance: TH 50 Resistance: EX 50 Resistance: EM 50 Resistance: I 50 Resistance: S 50 Resistance: P 50 Utility Shielding 66 Weapon Shielding 90 Evasion (%) 69 Targeting Accuracy 16 Melee Accuracy 6 Target Analysis 8 Core Analysis 8 Recoil Reduction 4 Matter Filtering 30 Particle Charging 30 Salvage Targeting 1 Offensive Hacking 10 Defensive Hacking 14 Authchip Count 4 Item Schematics ----------------- Exp. EM Shield | -2/Section 7 | Archive Robot Schematics ------------------ R-10 Processor | -2/Section 7 | Archive O-32 Director | -2/Section 7 | Archive Fabricated ------------ IN-MT5's Pitchfork "Insurrection" | x1 | -5/Factory | Authchip Deep Structural Scanner | x1 | -5/Factory | Authchip IN-MT5's Pitchfork "Insurrection" | x1 | -5/Factory | Authchip Deep Structural Scanner | x1 | -2/Research Repaired ---------- Nothing Alien Tech Used ----------------- Integrated Dissipator Transdimensional Reconstructor Core Regenerator Core Membrane Core Reset Matrix LRC Inertial Stabilizer LRC Matter Compressor Sigix Sheargun Sigix Exoskeleton Achievements -------------- None Challenges ------------ None Game ------ Seed StructuralRelayNetwork Manual? 0 Play Time 04:14:48 Cumulative 538.2 hours Start 2025.06.29 @ 12:58:52 End 2025.06.29 @ 18:28:56 Sessions 1 Manual Loads 0 Difficulty Rogue Special Mode None Game No. 314 Rogue 289 Adventurer 7 Explorer 18 Win Type 2 Total 42 Types 26/0/8/2/0/1/1/2/0/2 Lore% 94 Gallery% 90 Achievement% 81 Wizard Run 0 Options --------- Layout 0 ASCII 0 Keyboard 0 Movement Numpad Keybinds 0 Fullscreen 1 Font 12/Smallcaps Map View 83x54 Zoom Use 0% Tactical HUD 1 Map Filters NONE Filters NONE Steam 1 RUN: 0b67bf72-5424-4778-a439-2e6089a080aa